bitfinex/quotes_BTCUSD_20220120
["timestamp","ask_amount","ask_price","bid_price","bid_amount"]
[1642710995989,1.1,42701.0,42697.0,7.403e-05]
[1642710995990,0.05856729,42698.0,42697.0,7.403e-05]
[1642710996185,0.35976729,42698.0,42697.0,7.403e-05]
[1642710996383,0.35976729,42698.0,42694.0,0.00229686]
[1642710996585,0.57960866,42698.0,42694.0,0.00229686]
[1642710996782,0.00121828,42695.0,42694.0,0.00229686]
[1642710996984,0.01713828,42695.0,42694.0,0.00229686]
[1642710997183,0.01713828,42695.0,42694.0,0.00015471]
[1642710997583,0.01713828,42695.0,42687.0,0.00027504]
[1642710997785,0.21940401,42695.0,42684.0,0.24169751]
[1642710997987,0.058565,42693.0,42684.0,0.0964]
[1642710998185,0.0012798,42690.0,42685.0,0.38088595]
[1642710998383,0.24329199,42686.0,42685.0,8.595e-05]
[1642710998584,0.24329199,42686.0,42685.0,0.4808]
[1642710998841,0.24329199,42686.0,42685.0,0.80433815]
[1642710999039,0.01592,42687.0,42685.0,0.80433815]
[1642710999239,0.01592,42687.0,42686.0,0.3808]
[1642710999441,0.01592,42687.0,42686.0,0.38086876]
[1642711000238,0.01592,42687.0,42686.0,0.48086876]
[1642711001040,0.01592,42687.0,42686.0,6.876e-05]
[1642711001239,0.34170663,42687.0,42686.0,6.876e-05]
[1642711001441,0.34170663,42687.0,42685.0,8.595e-05]
[1642711001640,0.01720114,42687.0,42685.0,8.595e-05]
[1642711002043,0.07577764,42687.0,42685.0,8.595e-05]
[1642711002242,0.07577764,42687.0,42684.0,0.00065791]
[1642711002442,0.01592,42685.0,42684.0,0.00055477]
[1642711002895,0.01592,42685.0,42684.0,0.00065791]
[1642711003194,0.01579631,42685.0,42684.0,0.00010314]
[1642711003391,0.24831532,42685.0,42682.0,0.01090709]
[1642711003592,0.27515668,42683.0,42682.0,0.01090709]
[1642711003793,0.17515668,42683.0,42682.0,0.39170709]
[1642711004092,0.17515668,42683.0,42682.0,0.49170709]
[1642711004295,0.17515668,42683.0,42682.0,0.49115229]
[1642711004493,0.19108668,42683.0,42682.0,0.49115229]
[1642711006742,0.1906335,42683.0,42682.0,0.49115229]
[1642711008543,0.1906335,42683.0,42682.0,0.53755229]
[1642711010287,0.1906335,42683.0,42682.0,0.53762429]
[1642711010890,0.19051008,42683.0,42682.0,0.53750121]
[1642711013939,0.0153534,42683.0,42682.0,0.53750121]
[1642711019191,0.23,42687.0,42682.0,0.53750121]
[1642711019192,0.06032926,42689.0,42686.0,1.1]
[1642711019493,0.234294,42706.0,42686.0,1.1]
[1642711019494,0.01593,42687.0,42686.0,1.1]
[1642711019691,6.876e-05,42688.0,42687.0,1.4266]
[1642711019892,0.01593,42688.0,42687.0,1.807472]
[1642711020091,0.01593,42688.0,42687.0,1.107472]
[1642711020092,0.01599876,42688.0,42687.0,1.107472]
[1642711020292,0.01599876,42688.0,42687.0,1.224582]
[1642711022142,0.01599876,42688.0,42687.0,1.240582]
[1642711023248,0.01599876,42688.0,42687.0,1.123472]
[1642711023849,0.01599876,42688.0,42687.0,1.107472]
[1642711024046,0.01599876,42688.0,42687.0,1.124472]
[1642711024447,0.24599876,42688.0,42687.0,1.124472]
[1642711025292,0.24599876,42688.0,42687.0,1.107472]
[1642711026093,0.24599876,42688.0,42687.0,1.125472]
[1642711026294,9.50870405,42688.0,42687.0,1.125472]
[1642711026497,9.50870405,42688.0,42687.0,0.644672]
[1642711026695,9.50991313,42688.0,42687.0,0.0644]
[1642711027497,9.50991313,42688.0,42687.0,0.0464]
[1642711027696,0.50991313,42688.0,42687.0,0.0464]
[1642711028095,0.50991313,42688.0,42687.0,0.0644]
[1642711028296,2.06093168,42688.0,42687.0,0.0644]
[1642711029341,2.06093168,42688.0,42687.0,0.0464]
[1642711030246,2.06093168,42688.0,42687.0,0.0764]
[1642711030444,2.06093168,42688.0,42687.0,0.04770115]
[1642711030646,2.16952168,42688.0,42686.0,7.2e-05]
[1642711030848,0.37180117,42687.0,42686.0,7.2e-05]
[1642711031045,0.02417041,42687.0,42685.0,0.00041964]
[1642711031244,0.02417041,42687.0,42686.0,7.2e-05]
[1642711031245,0.32451009,42687.0,42686.0,7.2e-05]
[1642711031447,0.37451009,42687.0,42686.0,7.2e-05]
[1642711031650,0.00127781,42686.0,42685.0,0.00041964]
[1642711031847,0.05986804,42686.0,42682.0,0.01022921]
[1642711032046,0.05859,42685.0,42684.0,0.00041966]
[1642711032245,0.05985143,42685.0,42684.0,0.00041966]
[1642711032450,0.13437143,42685.0,42684.0,0.00041966]
[1642711032695,0.18437143,42685.0,42684.0,0.00041966]
[1642711033095,0.00122032,42682.0,42681.0,3.0]
[1642711033294,0.11840432,42682.0,42681.0,3.0]
[1642711033493,0.27962761,42682.0,42681.0,3.0]
[1642711033695,0.92962761,42682.0,42681.0,0.89370305]
[1642711033894,0.57962761,42682.0,42681.0,0.51290305]
[1642711034094,0.59762761,42682.0,42681.0,0.51290305]
[1642711034297,0.29762761,42682.0,42681.0,0.51290305]
[1642711035296,0.27962761,42682.0,42681.0,0.51290305]
[1642711035996,0.59977627,42682.0,42681.0,0.51290305]
[1642711036196,0.61377627,42682.0,42681.0,0.51290305]
[1642711036439,0.66377627,42682.0,42681.0,0.04408605]
[1642711036646,0.181184,42682.0,42681.0,0.04408605]
[1642711036842,0.131184,42682.0,42681.0,0.04408605]
[1642711037241,0.014,42682.0,42681.0,0.09048605]
[1642711037540,0.01593,42683.0,42681.0,0.09048605]
[1642711037941,0.01093,42683.0,42681.0,0.09048605]
[1642711038144,0.01093,42683.0,42681.0,0.10048605]
[1642711038543,0.01593,42683.0,42681.0,0.10048605]
[1642711040793,0.05858451,42682.0,42681.0,0.10048605]
[1642711040994,0.01593,42683.0,42681.0,0.10048605]
[1642711041395,0.01593,42683.0,42681.0,0.09048605]
[1642711042100,0.11718164,42682.0,42681.0,0.04408605]
[1642711042295,0.11718164,42682.0,42681.0,0.04808605]
[1642711042296,0.75793102,42682.0,42681.0,0.04808605]
[1642711042493,0.45793102,42682.0,42681.0,0.04808605]
[1642711043295,0.45740147,42682.0,42681.0,0.04808605]
[1642711043497,0.45740147,42682.0,42681.0,0.04408605]
[1642711044345,0.4579529,42682.0,42681.0,0.04408605]
[1642711044749,0.11844832,42682.0,42681.0,0.04408605]
[1642711045146,0.11844832,42682.0,42681.0,0.04415805]
[1642711045746,0.43524783,42682.0,42681.0,0.04415805]
[1642711046347,0.11844832,42682.0,42681.0,0.04415805]
[1642711049108,1.1,42680.0,42675.0,0.00253964]
[1642711049305,0.00123222,42676.0,42675.0,0.00261192]
[1642711049503,0.01716222,42676.0,42675.0,0.00253964]
[1642711049704,0.658615,42675.0,42669.0,0.0011]
[1642711049909,0.53077404,42674.0,42669.0,0.0011]
[1642711050106,0.22220893,42673.0,42669.0,0.0011]
[1642711050304,0.00123299,42673.0,42669.0,0.0011]
[1642711050504,0.00123299,42673.0,42672.0,0.00448046]
[1642711050705,0.38413437,42673.0,42672.0,0.00448046]
[1642711050905,0.01716299,42673.0,42672.0,0.00448046]
[1642711051840,0.06716299,42673.0,42672.0,0.00448046]
[1642711052040,0.48413437,42673.0,42672.0,0.00448046]
[1642711052240,0.49713437,42673.0,42672.0,0.00448046]
[1642711052442,0.13016299,42673.0,42672.0,0.00448046]
[1642711052640,0.4725855,42673.0,42672.0,0.00448046]
[1642711052840,0.8225855,42673.0,42672.0,0.00448046]
[1642711053041,0.4725855,42673.0,42672.0,0.00448046]
[1642711053539,0.4595855,42673.0,42672.0,0.00448046]
[1642711053740,0.77455481,42673.0,42672.0,0.00448046]
[1642711053939,1.00455481,42673.0,42672.0,0.00448046]
[1642711054140,1.01655481,42673.0,42672.0,0.00448046]
[1642711054339,0.35916299,42673.0,42672.0,0.00448046]
[1642711054741,0.30916299,42673.0,42672.0,0.00448046]
[1642711054953,0.058616,42676.0,42672.0,1.15088046]
[1642711055211,0.234433,42687.0,42676.0,0.24356577]
[1642711055212,0.01593,42679.0,42676.0,0.24356577]
[1642711055400,0.01593,42679.0,42678.0,1.2783908]
[1642711055601,0.01593,42684.0,42678.0,1.0074]
[1642711055801,0.01593,42684.0,42683.0,0.5802]
[1642711056000,0.01593,42684.0,42683.0,1.10866688]
[1642711056199,0.01593,42684.0,42683.0,1.11444868]
[1642711056399,0.01593,42684.0,42683.0,1.00866688]
[1642711056801,0.01593,42684.0,42683.0,1.0074]
[1642711056998,0.01593,42684.0,42683.0,1.1074]
[1642711057199,0.01593,42684.0,42683.0,0.4272]
[1642711057200,1.55632574,42684.0,42683.0,0.4272]
[1642711057402,1.76566491,42684.0,42683.0,0.0464]
[1642711058202,1.55632574,42684.0,42683.0,0.0554]
[1642711059249,1.60632574,42684.0,42683.0,0.009]
[1642711059445,2.03712574,42684.0,42679.0,8.595e-05]
[1642711059744,0.39763007,42683.0,42677.0,0.00054828]
[1642711060044,0.39763007,42683.0,42678.0,0.00010314]
[1642711060248,0.21060797,42680.0,42679.0,0.004]
[1642711060446,0.21060797,42680.0,42679.0,0.0001]
[1642711060447,1.06156556,42680.0,42679.0,0.0001]
[1642711060644,1.11156556,42680.0,42679.0,0.0001]
[1642711060845,1.06156556,42680.0,42679.0,0.0001]
[1642711061544,0.058599,42679.0,42677.0,0.00054831]
[1642711061846,0.31791771,42678.0,42671.0,0.01]
[1642711062044,0.31791771,42678.0,42676.0,0.00054834]
[1642711062045,0.36791771,42678.0,42676.0,0.00054834]
[1642711062245,0.05,42678.0,42676.0,0.00054834]
[1642711062697,0.07093,42679.0,42676.0,0.00054834]
[1642711062899,0.01593,42677.0,42676.0,0.00054834]
[1642711063097,0.01593,42677.0,42674.0,7.228e-05]
[1642711063397,0.074524,42677.0,42675.0,0.00070306]
[1642711063599,0.133122,42677.0,42675.0,0.00070306]
[1642711063797,0.133122,42677.0,42676.0,0.00013752]
[1642711063997,0.074528,42677.0,42676.0,0.00013752]
[1642711064196,0.4388191,42677.0,42676.0,0.0002098]
[1642711064896,0.119528,42677.0,42676.0,0.0002098]
[1642711065501,0.074528,42677.0,42676.0,0.0002098]
[1642711065698,0.074528,42677.0,42676.0,0.00013752]
[1642711066344,0.430528,42677.0,42676.0,0.00013752]
[1642711066645,0.120528,42677.0,42676.0,0.00013752]
[1642711067242,0.179123,42677.0,42675.0,0.00022699]
[1642711067443,0.01593,42676.0,42675.0,0.00015471]
[1642711067643,0.01593,42676.0,42674.0,0.00054837]
[1642711067844,0.01593,42676.0,42673.0,7.228e-05]
[1642711068047,0.058596,42675.0,42673.0,0.00054839]
[1642711068345,0.058596,42675.0,42674.0,0.0021719]
[1642711068546,0.058596,42675.0,42674.0,0.00224418]
[1642711069348,0.058596,42675.0,42674.0,0.0021719]
[1642711069748,0.058596,42675.0,42674.0,0.0001719]
[1642711070198,0.069596,42675.0,42674.0,0.0061719]
[1642711070900,0.29510342,42675.0,42674.0,0.0061719]
[1642711071099,0.24510342,42675.0,42674.0,0.0061719]
[1642711071898,0.24510342,42675.0,42674.0,0.0001719]
[1642711071899,0.23410342,42675.0,42674.0,0.0001719]
[1642711072398,0.55501666,42675.0,42674.0,0.00285144]
[1642711072901,0.55501666,42675.0,42674.0,0.00385144]
[1642711072902,0.24510342,42675.0,42674.0,0.00385144]
[1642711073300,0.36231406,42675.0,42674.0,0.00385144]
[1642711073501,0.35131406,42675.0,42674.0,0.001]
[1642711074349,0.36531406,42675.0,42674.0,0.001]
[1642711074950,0.67625559,42675.0,42674.0,0.001]
[1642711075652,0.66225559,42675.0,42674.0,0.001]
[1642711075849,0.54504495,42675.0,42674.0,0.001]
[1642711076352,0.55804495,42675.0,42674.0,0.001]
[1642711077453,0.67525587,42675.0,42674.0,0.001]
[1642711077714,0.66225587,42675.0,42674.0,0.001]
[1642711078317,0.67653087,42675.0,42674.0,0.001]
[1642711079616,0.45,42674.0,42671.0,0.01]
[1642711079817,0.62581956,42674.0,42671.0,0.01]
[1642711080017,0.62581956,42674.0,42668.0,0.1011]
[1642711080018,0.01593,42672.0,42668.0,0.1011]
[1642711080218,0.01593,42672.0,42668.0,7.2e-05]
[1642711080219,0.00126421,42669.0,42668.0,7.2e-05]
[1642711080417,1.48626421,42669.0,42660.0,1.37639965]
[1642711080619,0.20168473,42662.0,42661.0,7.2e-05]
[1642711080828,0.08523,42662.0,42661.0,0.00022347]
[1642711081017,0.1481,42662.0,42661.0,0.00022347]
[1642711081217,0.14657,42662.0,42661.0,0.00022347]
[1642711081451,0.65039,42662.0,42661.0,0.00022347]
[1642711081648,0.20039,42662.0,42661.0,0.00022347]
[1642711081846,0.19997,42662.0,42661.0,0.00022347]
[1642711082047,0.11474,42662.0,42661.0,0.00022347]
[1642711082248,2.62701695,42662.0,42661.0,0.00022347]
[1642711082448,0.09374,42662.0,42661.0,1.652e-05]
[1642711082650,0.09374,42662.0,42661.0,0.38103652]
[1642711083551,0.06474,42662.0,42661.0,0.38103652]
[1642711084149,0.01552,42662.0,42661.0,0.38103652]
[1642711084352,0.05952,42662.0,42661.0,0.38103652]
[1642711085398,0.05952,42662.0,42661.0,0.38109705]
[1642711085696,0.01542638,42662.0,42661.0,0.38109705]
[1642711086296,0.02942638,42662.0,42661.0,0.38109705]
[1642711086497,0.02942638,42662.0,42661.0,7.705e-05]
[1642711086696,0.02942638,42662.0,42660.0,1.33517245]
[1642711086895,0.02942638,42662.0,42661.0,0.00014879]
[1642711087497,0.01542638,42662.0,42661.0,0.00014879]
[1642711088297,0.02942638,42662.0,42661.0,0.00014879]
[1642711088698,0.03067745,42662.0,42661.0,0.00014879]
[1642711089851,0.01942638,42662.0,42661.0,0.00014879]
[1642711090054,0.01878638,42662.0,42661.0,0.00014879]
[1642711090252,0.00478638,42662.0,42661.0,0.00014879]
[1642711090455,0.01878638,42662.0,42661.0,0.00014879]
[1642711091654,0.00478638,42662.0,42661.0,0.00014879]
[1642711092054,0.00478638,42662.0,42660.0,1.3355988]
[1642711092254,0.01878638,42662.0,42661.0,7.2e-05]
[1642711092455,0.01878638,42662.0,42660.0,1.3356708]
[1642711093701,0.00478638,42662.0,42660.0,1.3356708]
[1642711094500,0.01278638,42662.0,42660.0,1.3356708]
[1642711095300,0.18002856,42662.0,42660.0,1.3356708]
[1642711095506,0.05478638,42662.0,42660.0,1.3356708]
[1642711095699,0.00478638,42662.0,42660.0,1.3356708]
[1642711096349,0.01678638,42662.0,42660.0,1.3356708]
[1642711097549,0.00478638,42662.0,42660.0,1.3356708]
[1642711097752,0.00478638,42662.0,42660.0,1.4356708]
[1642711097952,0.00478638,42662.0,42661.0,0.38102]
[1642711098150,0.00320186,42662.0,42661.0,0.481092]
[1642711098351,0.03320186,42662.0,42661.0,0.481092]
[1642711098753,0.03320186,42662.0,42661.0,0.381092]
[1642711099451,0.03320186,42662.0,42661.0,7.2e-05]
[1642711099751,0.03320186,42662.0,42660.0,1.3455988]
[1642711099752,0.00320186,42662.0,42660.0,1.3356708]
[1642711100199,0.06182008,42662.0,42660.0,1.3356708]
[1642711100399,0.07682008,42662.0,42660.0,1.3356708]
[1642711101603,0.00320186,42662.0,42660.0,1.3356708]
[1642711102202,0.00320186,42661.0,42660.0,1.3306708]
[1642711102402,0.00320186,42661.0,42660.0,1.3305988]
[1642711102600,0.00320186,42661.0,42660.0,1.3306708]
[1642711103003,0.06181647,42661.0,42660.0,1.3306708]
[1642711104050,0.06181647,42661.0,42660.0,1.32988028]
[1642711104447,0.07081647,42661.0,42660.0,1.34088028]
[1642711104848,0.01220186,42661.0,42660.0,1.34088028]
[1642711105449,0.01220186,42661.0,42660.0,1.72190028]
[1642711105650,0.00320186,42661.0,42660.0,1.71090028]
[1642711106451,0.01020186,42661.0,42660.0,1.72290028]
[1642711107151,0.01020186,42661.0,42660.0,1.72303111]
[1642711107352,0.01020186,42661.0,42660.0,1.34201111]
[1642711107594,0.00520186,42661.0,42660.0,1.34201111]
[1642711107795,0.06361105,42663.0,42660.0,1.33001111]
[1642711108000,0.06361105,42663.0,42661.0,7.2e-05]
[1642711108395,0.08461105,42663.0,42661.0,7.2e-05]
[1642711108695,0.05,42662.0,42661.0,7.2e-05]
[1642711108895,0.08461105,42663.0,42660.0,1.33055608]
[1642711109096,0.32108095,42662.0,42660.0,1.33055608]
[1642711109297,0.08461105,42663.0,42661.0,7.2e-05]
[1642711109499,0.08461105,42663.0,42660.0,1.33055608]
[1642711109698,0.06361105,42663.0,42660.0,1.33055608]
[1642711109897,0.06361105,42663.0,42661.0,7.2e-05]
[1642711110498,0.08261105,42663.0,42661.0,7.2e-05]
[1642711111750,0.06361105,42663.0,42661.0,7.2e-05]
[1642711112054,0.06361105,42663.0,42662.0,0.0001443]
[1642711112351,0.08461105,42663.0,42662.0,0.0002163]
[1642711113753,0.005,42663.0,42662.0,0.0002163]
[1642711114658,0.052,42663.0,42662.0,0.0072163]
[1642711115615,0.005,42663.0,42662.0,0.0002163]
[1642711115814,0.005,42663.0,42662.0,0.0001443]
[1642711116015,0.005,42663.0,42662.0,0.0002163]
[1642711116414,0.016,42663.0,42662.0,0.0022163]
[1642711117415,0.32695772,42663.0,42662.0,0.0022163]
[1642711117615,0.32695772,42663.0,42662.0,0.0002163]
[1642711117814,0.31595772,42663.0,42662.0,0.0002163]
[1642711118215,0.005,42663.0,42662.0,0.0002163]
[1642711118415,0.02,42663.0,42662.0,0.0002163]
[1642711119753,0.005,42663.0,42662.0,0.0002163]
[1642711120150,0.31676925,42663.0,42662.0,0.0002163]
[1642711120552,0.33176925,42663.0,42662.0,0.0002163]
[1642711120752,0.02,42663.0,42662.0,0.0002163]
[1642711121452,0.33322306,42663.0,42662.0,0.0002163]
[1642711122355,0.005,42663.0,42662.0,0.0002163]
[1642711122599,0.02,42663.0,42662.0,0.0002163]
[1642711123696,0.005,42663.0,42662.0,0.0002163]
[1642711124095,0.405,42663.0,42662.0,0.0002163]
[1642711124496,0.42,42663.0,42662.0,0.0002163]
[1642711125099,0.02,42663.0,42662.0,0.0002163]
[1642711125498,0.01719,42663.0,42662.0,0.0002163]
[1642711125698,0.00219,42663.0,42662.0,0.0002163]
[1642711126550,0.01719,42663.0,42662.0,0.0002163]
[1642711127350,0.01719,42663.0,42660.0,1.30167272]
[1642711127554,0.07581165,42663.0,42661.0,0.38102]
[1642711127751,0.06081165,42663.0,42661.0,0.38102]
[1642711128654,0.07581165,42663.0,42661.0,0.38102]
[1642711130112,0.06581165,42663.0,42660.0,1.30167273]
[1642711130298,0.05081165,42663.0,42660.0,1.30112776]
[1642711130499,0.06581165,42663.0,42660.0,1.30167273]
[1642711131000,0.11724449,42662.0,42660.0,1.30167273]
[1642711131400,0.11724449,42662.0,42661.0,0.38102]
[1642711131602,0.06581165,42663.0,42661.0,0.38102]
[1642711131801,0.05075165,42663.0,42661.0,0.38102]
[1642711132199,0.36298936,42663.0,42662.0,0.00017555]
[1642711132401,0.37798936,42663.0,42662.0,0.00017555]
[1642711133402,0.06575165,42663.0,42662.0,0.00017555]
[1642711133602,0.05075165,42663.0,42662.0,0.00017555]
[1642711134551,0.06575165,42663.0,42662.0,0.00017555]
[1642711135550,0.38034562,42663.0,42662.0,0.00017555]
[1642711135751,0.36534562,42663.0,42662.0,0.00017555]
[1642711136450,0.06575165,42663.0,42662.0,0.00017555]
[1642711136651,0.38176618,42663.0,42662.0,0.00017555]
[1642711136852,1.48176618,42663.0,42662.0,0.00017555]
[1642711137052,2.00918618,42663.0,42661.0,0.000689]
[1642711137254,0.34956,42662.0,42661.0,0.000689]
[1642711137456,0.6464,42662.0,42661.0,0.000689]
[1642711138299,0.6,42662.0,42661.0,0.000689]
[1642711138600,0.014,42662.0,42661.0,0.000689]
[1642711138800,0.3788632,42662.0,42661.0,0.381709]
[1642711139001,0.3788632,42662.0,42661.0,0.000689]
[1642711139502,0.014,42662.0,42661.0,0.000689]
[1642711139802,0.00219,42663.0,42661.0,0.000689]
[1642711140203,0.00219,42663.0,42661.0,0.000761]
[1642711140404,0.06319,42663.0,42661.0,0.000761]
[1642711141556,0.01319,42663.0,42661.0,0.000761]
[1642711141756,0.00219,42663.0,42661.0,0.000761]
[1642711142157,0.00219,42663.0,42661.0,0.00035088]
[1642711142360,0.00128595,42662.0,42661.0,0.00035088]
[1642711144559,0.56328595,42662.0,42661.0,0.00035088]
[1642711144760,0.91106212,42662.0,42661.0,0.00035088]
[1642711145199,1.29208212,42662.0,42661.0,0.00035088]
[1642711145799,1.28008212,42662.0,42661.0,0.00035088]
[1642711146602,1.29108212,42662.0,42661.0,0.00035088]
[1642711146803,0.94330595,42662.0,42661.0,0.00035088]
[1642711147910,1.24539802,42662.0,42661.0,0.00035088]
[1642711148306,1.03230595,42662.0,42661.0,0.00035088]
[1642711148507,1.35400529,42662.0,42661.0,0.00035088]
[1642711148946,1.34900529,42662.0,42661.0,0.00035088]
[1642711149148,0.93730595,42662.0,42661.0,0.00035088]
[1642711149845,0.92730595,42662.0,42661.0,0.00035088]
[1642711150048,0.82730595,42662.0,42661.0,0.00035088]
[1642711150252,0.38102,42662.0,42661.0,0.00035088]
[1642711150452,0.05219,42663.0,42661.0,0.00035088]
[1642711150647,0.32379282,42662.0,42661.0,0.00035088]
[1642711150851,1.12379282,42662.0,42661.0,0.00035088]
[1642711151048,1.60481282,42662.0,42661.0,0.00035088]
[1642711151447,0.80481282,42662.0,42661.0,0.00035088]
[1642711151847,0.48102,42662.0,42661.0,0.00035088]
[1642711152047,0.38102,42662.0,42661.0,0.00035088]
[1642711152247,0.05219,42663.0,42661.0,0.00035088]
[1642711152447,0.00219,42663.0,42661.0,0.00035088]
[1642711152703,0.012,42662.0,42661.0,0.00035088]
[1642711153106,0.012,42662.0,42661.0,0.38137088]
[1642711153706,0.00219,42663.0,42661.0,0.38137088]
[1642711154504,0.02019,42663.0,42661.0,0.38837088]
[1642711155904,0.00219,42663.0,42661.0,0.38137088]
[1642711156551,0.01419,42663.0,42661.0,0.44498288]
[1642711156750,0.01419,42663.0,42661.0,0.38637088]
[1642711156952,0.01419,42663.0,42662.0,0.00017438]
[1642711157850,0.00219,42663.0,42662.0,0.00017438]
[1642711158751,0.02419,42663.0,42662.0,0.00317438]
[1642711160202,0.01919,42663.0,42662.0,0.38419438]
[1642711160403,0.36404094,42669.0,42662.0,0.38119438]
[1642711160605,0.024,42663.0,42662.0,0.00617438]
[1642711161405,0.0185,42663.0,42662.0,0.00617438]
[1642711161905,0.36556322,42668.0,42662.0,0.00017438]
[1642711162105,0.36556322,42668.0,42664.0,0.00036081]
[1642711162305,0.00010314,42667.0,42664.0,0.00036081]
[1642711162506,0.43102,42666.0,42664.0,0.00036081]
[1642711162707,0.31503142,42665.0,42664.0,0.00036081]
[1642711162906,6.876e-05,42665.0,42664.0,0.00036081]
[1642711163105,0.31427633,42665.0,42664.0,0.00036081]
[1642711163309,0.05006876,42665.0,42664.0,0.00036081]
[1642711163504,6.876e-05,42665.0,42664.0,0.00036081]
[1642711164557,0.01006876,42665.0,42664.0,0.00036081]
[1642711165861,6.876e-05,42665.0,42664.0,0.00036081]
[1642711166258,6.876e-05,42665.0,42661.0,0.05878163]
[1642711166458,6.876e-05,42665.0,42662.0,0.00046782]
[1642711166658,0.01006876,42665.0,42662.0,0.00046782]
[1642711167058,0.01006876,42665.0,42664.0,0.00070977]
[1642711167699,0.22688398,42669.0,42664.0,0.00070977]
[1642711167906,0.38102,42668.0,42664.0,0.00070977]
[1642711168699,0.39202,42668.0,42664.0,0.00070977]
[1642711169302,0.061,42668.0,42664.0,0.00070977]
[1642711169503,0.011,42668.0,42664.0,0.00070977]
[1642711169902,0.3318,42670.0,42664.0,0.00070977]
[1642711170104,0.3318,42670.0,42665.0,0.058611]
[1642711170304,6.876e-05,42669.0,42665.0,0.058611]
[1642711170701,6.876e-05,42669.0,42664.0,0.00070977]
[1642711172160,6.876e-05,42669.0,42668.0,0.00015589]
[1642711172558,0.06106876,42669.0,42668.0,0.00015589]
[1642711172857,0.05606876,42669.0,42668.0,0.00015589]
[1642711173858,0.1,42674.0,42668.0,0.00015589]
[1642711174057,0.43102,42673.0,42668.0,0.00015589]
[1642711174258,0.05006876,42673.0,42668.0,0.00015589]
[1642711174558,0.05206876,42673.0,42668.0,0.00015589]
[1642711174759,0.10206876,42673.0,42668.0,0.00015589]
[1642711174959,0.05206876,42673.0,42668.0,0.00015589]
[1642711175206,0.38102,42672.0,42668.0,0.00015589]
[1642711175405,0.05,42672.0,42668.0,0.00015589]
[1642711175805,0.15206876,42673.0,42668.0,0.00015589]
[1642711176005,0.05,42672.0,42668.0,0.00015589]
[1642711176406,0.10006876,42673.0,42668.0,0.00015589]
[1642711176608,0.049,42672.0,42668.0,0.00015589]
[1642711176806,0.049,42672.0,42664.0,0.058609]
[1642711176807,0.099,42672.0,42664.0,0.058609]
[1642711177007,0.099,42672.0,42671.0,0.00015353]
[1642711177207,0.48002,42672.0,42671.0,0.00015353]
[1642711178008,0.43102,42672.0,42671.0,0.00015353]
[1642711178609,0.47802,42672.0,42671.0,0.00015353]
[1642711179952,0.43102,42672.0,42671.0,0.00015353]
[1642711180255,0.53102,42672.0,42671.0,0.00015353]
[1642711180654,0.54702,42672.0,42671.0,0.00015353]
[1642711181954,0.53102,42672.0,42671.0,0.00015353]
[1642711182155,0.43102,42672.0,42671.0,0.00019796]
[1642711182354,1.27108201,42672.0,42671.0,0.00019796]
[1642711182601,1.28508201,42672.0,42671.0,0.00019796]
[1642711183906,0.77108201,42672.0,42671.0,0.00019796]
[1642711184306,0.73102,42672.0,42671.0,0.00019796]
[1642711184506,0.43102,42672.0,42671.0,0.00019796]
[1642711184706,0.43102,42672.0,42669.0,0.00018066]
[1642711184707,0.45002,42672.0,42663.0,0.117216]
[1642711184905,0.06912033,42672.0,42663.0,0.117216]
[1642711185105,0.00010314,42671.0,42663.0,0.117216]
[1642711185505,8.595e-05,42670.0,42664.0,0.058605]
[1642711185905,6.876e-05,42669.0,42664.0,0.117211]
[1642711186352,0.00013752,42673.0,42664.0,0.175819]
[1642711186555,0.049,42669.0,42664.0,0.175819]
[1642711186953,0.049,42669.0,42666.0,0.0001996]
[1642711187152,0.049,42669.0,42667.0,0.058605]
[1642711187955,0.17511927,42670.0,42667.0,0.058605]
[1642711188155,0.22511927,42670.0,42667.0,0.058605]
[1642711188355,6.876e-05,42669.0,42667.0,0.058605]
[1642711190603,6.876e-05,42669.0,42667.0,0.062605]
[1642711191904,6.876e-05,42669.0,42667.0,0.058605]
[1642711192104,6.876e-05,42669.0,42668.0,0.00020493]
[1642711192303,6.876e-05,42669.0,42668.0,0.70020493]
[1642711192506,6.876e-05,42669.0,42668.0,1.08122493]
[1642711192704,6.876e-05,42669.0,42668.0,1.08622493]
[1642711193106,6.876e-05,42669.0,42668.0,1.36775613]
[1642711193954,6.876e-05,42669.0,42668.0,1.36275613]
[1642711194756,6.876e-05,42669.0,42668.0,1.37598215]
[1642711195456,6.876e-05,42669.0,42668.0,1.588221]
[1642711195854,6.876e-05,42669.0,42668.0,1.36398215]
[1642711196258,6.876e-05,42669.0,42668.0,1.66398215]
[1642711196555,6.876e-05,42669.0,42668.0,1.76398215]
[1642711196755,6.876e-05,42669.0,42668.0,1.82998215]
[1642711196960,6.876e-05,42669.0,42668.0,1.82638215]
[1642711197157,6.876e-05,42669.0,42668.0,1.72638215]
[1642711197604,6.876e-05,42669.0,42668.0,1.42638215]
[1642711198004,6.876e-05,42669.0,42668.0,1.51038215]
[1642711198606,0.03306876,42669.0,42668.0,1.52038215]
[1642711199407,0.03306876,42669.0,42668.0,1.47398215]
[1642711199807,6.876e-05,42669.0,42668.0,1.46398215]
[1642711200007,0.1,42679.0,42672.0,0.058596]
[1642711200209,0.05010411,42679.0,42673.0,0.058598]
[1642711200408,0.17979684,42680.0,42673.0,0.058598]
[1642711200707,0.04920818,42679.0,42674.0,6.876e-05]
[1642711200910,0.049,42679.0,42674.0,6.876e-05]
[1642711201108,0.049,42679.0,42674.0,0.05866276]
[1642711201558,0.049,42679.0,42678.0,0.34271666]
[1642711201959,0.0011959,42680.0,42678.0,0.34271666]
[1642711202159,0.0011959,42680.0,42678.0,0.34399943]
[1642711202455,1.5897,42687.0,42678.0,0.34399943]
[1642711202655,0.0011959,42681.0,42679.0,0.10497915]
[1642711202854,0.0011959,42681.0,42680.0,0.6144934]
[1642711203055,0.0011959,42681.0,42680.0,0.9955134]
[1642711203757,0.00119589,42683.0,42681.0,0.05857342]
[1642711204055,0.00119589,42683.0,42682.0,0.83102]
[1642711204255,0.00119589,42683.0,42682.0,1.26988029]
[1642711204456,0.00128184,42683.0,42682.0,0.94943805]
[1642711204660,0.00128184,42683.0,42682.0,0.51643805]
[1642711204661,8.595e-05,42683.0,42682.0,0.51643805]
[1642711205509,0.00119587,42685.0,42683.0,1.1]
[1642711205707,0.55196167,42699.0,42685.0,1.1]
[1642711205905,0.35893268,42696.0,42693.0,0.00123841]
[1642711206104,0.00022347,42696.0,42693.0,0.00123841]
[1642711206508,0.00022347,42696.0,42695.0,0.30589637]
[1642711206705,0.00022347,42696.0,42695.0,0.05855641]
[1642711207406,0.00022347,42696.0,42695.0,0.05983305]
[1642711207606,0.00022347,42696.0,42695.0,0.84085305]
[1642711207806,0.00022347,42696.0,42695.0,0.63882884]
[1642711208206,0.00022347,42696.0,42695.0,0.9988251]